[Event "Titled Tuesday Blitz April 18 Early 2023"]
[White "Liu, Casper"]
[Black "AyMitecK"]
[WhiteFideId "1454153"]
[WhiteElo "2221"]
[BlackElo "2566"]
[Result "1/2-1/2"]
[Round "05"]
[TimeControl "180+2"]
[Date "2023.04.18"]
[WhiteClock "0:00:22"]
[BlackClock "0:01:32"]

1. e4 {[%clk 0:03:00]}  e6 {[%clk 0:03:00]} 2. c3 {[%clk 0:02:57]}  d5 {[%clk 0:03:00]} 3. Bd3 {[%clk 0:02:56]}  Nf6 {[%clk 0:02:59]} 4. e5 {[%clk 0:02:49]}  Nfd7 {[%clk 0:02:59]} 5. f4 {[%clk 0:02:50]}  c5 {[%clk 0:02:59]} 6. Nf3 {[%clk 0:02:50]}  Nc6 {[%clk 0:03:00]} 7. O-O {[%clk 0:02:50]}  c4 {[%clk 0:02:55]} 8. Bc2 {[%clk 0:02:50]}  b5 {[%clk 0:02:55]} 9. Kh1 {[%clk 0:02:50]}  Nc5 {[%clk 0:02:54]} 10. b4 {[%clk 0:02:45]}  cxb3 {[%clk 0:02:51]} 11. axb3 {[%clk 0:02:45]}  d4 {[%clk 0:02:51]} 12. b4 {[%clk 0:02:37]}  Nd7 {[%clk 0:02:42]} 13. Be4 {[%clk 0:02:35]}  Bb7 {[%clk 0:02:41]} 14. Nxd4 {[%clk 0:02:33]}  Nxd4 {[%clk 0:02:30]} 15. Bxb7 {[%clk 0:02:33]}  Rb8 {[%clk 0:02:27]} 16. Be4 {[%clk 0:02:24]}  Nf5 {[%clk 0:02:21]} 17. Rxa7 {[%clk 0:02:22]}  Qb6 {[%clk 0:02:20]} 18. Ra2 {[%clk 0:02:17]}  h5 {[%clk 0:02:17]} 19. Bxf5 {[%clk 0:01:56]}  exf5 {[%clk 0:02:15]} 20. d4 {[%clk 0:01:56]}  Be7 {[%clk 0:02:10]} 21. Nd2 {[%clk 0:01:55]}  Nf8 {[%clk 0:02:08]} 22. Nb3 {[%clk 0:01:53]}  h4 {[%clk 0:02:05]} 23. Be3 {[%clk 0:01:51]}  Rd8 {[%clk 0:01:59]} 24. h3 {[%clk 0:01:47]}  Qe6 {[%clk 0:01:57]} 25. Ra7 {[%clk 0:01:42]}  Qd5 {[%clk 0:01:54]} 26. Na5 {[%clk 0:01:40]}  Rh6 {[%clk 0:01:51]} 27. Qf3 {[%clk 0:01:17]}  Qxf3 {[%clk 0:01:43]} 28. Rxf3 {[%clk 0:01:18]}  Rc8 {[%clk 0:01:43]} 29. d5 {[%clk 0:01:12]}  Rxc3 {[%clk 0:01:36]} 30. Bc5 {[%clk 0:01:08]}  Rc1+ {[%clk 0:01:32]} 31. Kh2 {[%clk 0:00:47]}  Bxc5 {[%clk 0:01:30]} 32. bxc5 {[%clk 0:00:47]}  Rxc5 {[%clk 0:01:31]} 33. Ra8+ {[%clk 0:00:43]}  Kd7 {[%clk 0:01:23]} 34. Rxf8 {[%clk 0:00:42]}  Ke7 {[%clk 0:01:23]} 35. Rb8 {[%clk 0:00:22]}  Rxd5 {[%clk 0:01:22]} 36. Rb3 {[%clk 0:00:22]}  Ra6 {[%clk 0:01:19]} 37. R3xb5 {[%clk 0:00:20]}  Rxa5 {[%clk 0:01:19]} 38. R5b7+ {[%clk 0:00:19]}  Rd7 {[%clk 0:01:18]} 39. Rxd7+ {[%clk 0:00:16]}  Kxd7 {[%clk 0:01:19]} 40. Rh8 {[%clk 0:00:17]}  Ra4 {[%clk 0:01:17]} 41. Rxh4 {[%clk 0:00:17]}  g5 {[%clk 0:01:17]} 42. Rh7 {[%clk 0:00:17]}  Rxf4 {[%clk 0:01:15]} 43. Rxf7+ {[%clk 0:00:17]}  Ke6 {[%clk 0:01:16]} 44. Rg7 {[%clk 0:00:17]}  Kxe5 {[%clk 0:01:16]} 45. Rxg5 {[%clk 0:00:17]}  Kf6 {[%clk 0:01:16]} 46. Rg8 {[%clk 0:00:17]}  Ra4 {[%clk 0:01:17]} 47. Kg3 {[%clk 0:00:17]}  Kf7 {[%clk 0:01:17]} 48. Rg5 {[%clk 0:00:16]}  Kf6 {[%clk 0:01:17]} 49. h4 {[%clk 0:00:17]}  Ra3+ {[%clk 0:01:18]} 50. Kh2 {[%clk 0:00:17]}  Ra4 {[%clk 0:01:19]} 51. g3 {[%clk 0:00:17]}  Ra3 {[%clk 0:01:19]} 52. Kh3 {[%clk 0:00:18]}  Ra1 {[%clk 0:01:20]} 53. Rg8 {[%clk 0:00:18]}  Rh1+ {[%clk 0:01:21]} 54. Kg2 {[%clk 0:00:18]}  Ra1 {[%clk 0:01:21]} 55. Rf8+ {[%clk 0:00:18]}  Kg6 {[%clk 0:01:22]} 56. Rb8 {[%clk 0:00:19]}  Ra2+ {[%clk 0:01:21]} 57. Kh3 {[%clk 0:00:20]}  Ra6 {[%clk 0:01:22]} 58. Rb5 {[%clk 0:00:20]}  Kf6 {[%clk 0:01:23]} 59. Rb4 {[%clk 0:00:20]}  Rc6 {[%clk 0:01:23]} 60. Rf4 {[%clk 0:00:21]}  Kg6 {[%clk 0:01:22]} 61. Rf1 {[%clk 0:00:21]}  Rc3 {[%clk 0:01:22]} 62. Re1 {[%clk 0:00:21]}  f4 {[%clk 0:01:22]} 63. Rg1 {[%clk 0:00:17]}  Kh5 {[%clk 0:01:21]} 64. Kh2 {[%clk 0:00:15]}  fxg3+ {[%clk 0:01:18]} 65. Rxg3 {[%clk 0:00:15]}  Rc1 {[%clk 0:01:18]} 66. Rh3 {[%clk 0:00:11]}  Kg4 {[%clk 0:01:17]} 67. Rg3+ {[%clk 0:00:09]}  Kxh4 {[%clk 0:01:17]} 68. Rh3+ {[%clk 0:00:09]}  Kg4 {[%clk 0:01:17]} 69. Rg3+ {[%clk 0:00:10]}  Kf4 {[%clk 0:01:18]} 70. Ra3 {[%clk 0:00:10]}  Rc2+ {[%clk 0:01:18]} 71. Kh3 {[%clk 0:00:10]}  Rc4 {[%clk 0:01:19]} 72. Rg3 {[%clk 0:00:10]}  Rc8 {[%clk 0:01:19]} 73. Rg4+ {[%clk 0:00:10]}  Kf5 {[%clk 0:01:18]} 74. Rg3 {[%clk 0:00:10]}  Rh8+ {[%clk 0:01:18]} 75. Kg2 {[%clk 0:00:11]}  Ra8 {[%clk 0:01:19]} 76. Rf3+ {[%clk 0:00:11]}  Ke4 {[%clk 0:01:20]} 77. Rf2 {[%clk 0:00:12]}  Rg8+ {[%clk 0:01:20]} 78. Kf1 {[%clk 0:00:12]}  Ke3 {[%clk 0:01:21]} 79. Re2+ {[%clk 0:00:12]}  Kd3 {[%clk 0:01:21]} 80. Rh2 {[%clk 0:00:13]}  Rf8+ {[%clk 0:01:21]} 81. Kg1 {[%clk 0:00:12]}  Ra8 {[%clk 0:01:22]} 82. Rh3+ {[%clk 0:00:13]}  Ke4 {[%clk 0:01:23]} 83. Rh4+ {[%clk 0:00:13]}  Kf3 {[%clk 0:01:24]} 84. Rh3+ {[%clk 0:00:14]}  Kg4 {[%clk 0:01:24]} 85. Rb3 {[%clk 0:00:14]}  Ra4 {[%clk 0:01:23]} 86. Kf2 {[%clk 0:00:15]}  Ra2+ {[%clk 0:01:23]} 87. Ke3 {[%clk 0:00:15]}  Kf5 {[%clk 0:01:24]} 88. Kd4 {[%clk 0:00:15]}  Ke6 {[%clk 0:01:24]} 89. Re3+ {[%clk 0:00:15]}  Kd6 {[%clk 0:01:24]} 90. Ke4 {[%clk 0:00:16]}  Ke6 {[%clk 0:01:24]} 91. Kd4+ {[%clk 0:00:16]}  Kd6 {[%clk 0:01:24]} 92. Ke4 {[%clk 0:00:17]}  Ra4+ {[%clk 0:01:25]} 93. Kf5 {[%clk 0:00:17]}  Kd5 {[%clk 0:01:26]} 94. Rd3+ {[%clk 0:00:17]}  Kc6 {[%clk 0:01:26]} 95. Rd8 {[%clk 0:00:18]}  Ra1 {[%clk 0:01:25]} 96. Rd2 {[%clk 0:00:18]}  Re1 {[%clk 0:01:24]} 97. Rc2+ {[%clk 0:00:18]}  Kd5 {[%clk 0:01:25]} 98. Rd2+ {[%clk 0:00:19]}  Kc4 {[%clk 0:01:25]} 99. Rc2+ {[%clk 0:00:19]}  Kd3 {[%clk 0:01:26]} 100. Rc8 {[%clk 0:00:20]}  Rf1+ {[%clk 0:01:26]} 101. Ke5 {[%clk 0:00:21]}  Ra1 {[%clk 0:01:27]} 102. Rd8+ {[%clk 0:00:20]}  Ke3 {[%clk 0:01:27]} 103. Kf5 {[%clk 0:00:20]}  Ra5+ {[%clk 0:01:28]} 104. Ke6 {[%clk 0:00:20]}  Ke4 {[%clk 0:01:28]} 105. Rh8 {[%clk 0:00:19]}  Ra6+ {[%clk 0:01:28]} 106. Kd7 {[%clk 0:00:19]}  Kf5 {[%clk 0:01:29]} 107. Re8 {[%clk 0:00:18]}  Kf6 {[%clk 0:01:29]} 108. Kd8 {[%clk 0:00:19]}  Rb6 {[%clk 0:01:28]} 109. Re1 {[%clk 0:00:18]}  Rb7 {[%clk 0:01:28]} 110. Kc8 {[%clk 0:00:18]}  Rh7 {[%clk 0:01:28]} 111. Rf1+ {[%clk 0:00:19]}  Ke6 {[%clk 0:01:28]} 112. Re1+ {[%clk 0:00:20]}  Kd6 {[%clk 0:01:29]} 113. Rd1+ {[%clk 0:00:20]}  Kc6 {[%clk 0:01:29]} 114. Rc1+ {[%clk 0:00:21]}  Kd5 {[%clk 0:01:30]} 115. Rd1+ {[%clk 0:00:21]}  Ke6 {[%clk 0:01:30]} 116. Re1+ {[%clk 0:00:22]}  Kf5 {[%clk 0:01:31]} 117. Rf1+ {[%clk 0:00:22]}  Ke4 {[%clk 0:01:32]} 1/2-1/2


[Site "https://www.chess.com"]

[Event "Titled Tuesday Blitz April 18 Early 2023"]
[White "kuanysh1981"]
[Black "Gontcharov, Vladislav"]
[BlackFideId "4123492"]
[WhiteElo "2396"]
[BlackElo "2420"]
[Result "1-0"]
[Round "05"]
[TimeControl "180+2"]
[Date "2023.04.18"]
[WhiteClock "0:00:19"]
[BlackClock "0:00:01"]

1. d4 {[%clk 0:02:48]}  Nf6 {[%clk 0:02:59]} 2. Nf3 {[%clk 0:02:49]}  e6 {[%clk 0:02:58]} 3. g3 {[%clk 0:02:49]}  d5 {[%clk 0:02:58]} 4. Bg2 {[%clk 0:02:48]}  Be7 {[%clk 0:02:58]} 5. O-O {[%clk 0:02:48]}  O-O {[%clk 0:02:58]} 6. c4 {[%clk 0:02:49]}  c6 {[%clk 0:02:58]} 7. Nc3 {[%clk 0:02:48]}  b6 {[%clk 0:02:58]} 8. b3 {[%clk 0:02:44]}  Bb7 {[%clk 0:02:56]} 9. Bb2 {[%clk 0:02:44]}  a5 {[%clk 0:02:56]} 10. Ne5 {[%clk 0:02:38]}  Na6 {[%clk 0:02:56]} 11. a3 {[%clk 0:02:36]}  c5 {[%clk 0:02:52]} 12. cxd5 {[%clk 0:02:30]}  Nxd5 {[%clk 0:02:49]} 13. Nxd5 {[%clk 0:02:30]}  exd5 {[%clk 0:02:39]} 14. dxc5 {[%clk 0:02:25]}  bxc5 {[%clk 0:02:35]} 15. Qd2 {[%clk 0:02:15]}  Nc7 {[%clk 0:02:12]} 16. Rfd1 {[%clk 0:02:08]}  a4 {[%clk 0:02:05]} 17. b4 {[%clk 0:02:04]}  cxb4 {[%clk 0:02:04]} 18. axb4 {[%clk 0:02:03]}  Qd6 {[%clk 0:01:56]} 19. Nc4 {[%clk 0:01:52]}  Qxb4 {[%clk 0:01:43]} 20. Qxb4 {[%clk 0:01:18]}  Bxb4 {[%clk 0:01:42]} 21. Nb6 {[%clk 0:01:18]}  Ra5 {[%clk 0:01:20]} 22. Rxa4 {[%clk 0:01:06]}  Rxa4 {[%clk 0:01:15]} 23. Nxa4 {[%clk 0:01:03]}  Ra8 {[%clk 0:00:39]} 24. Nb6 {[%clk 0:01:02]}  Ra5 {[%clk 0:00:33]} 25. Be5 {[%clk 0:00:59]}  Ne6 {[%clk 0:00:23]} 26. Nxd5 {[%clk 0:00:57]}  Bf8 {[%clk 0:00:16]} 27. e4 {[%clk 0:00:53]}  Ra2 {[%clk 0:00:11]} 28. Rb1 {[%clk 0:00:44]}  Bc6 {[%clk 0:00:09]} 29. h4 {[%clk 0:00:38]}  h5 {[%clk 0:00:08]} 30. Rb8 {[%clk 0:00:36]}  Ra8 {[%clk 0:00:07]} 31. Rb6 {[%clk 0:00:35]}  Bd7 {[%clk 0:00:06]} 32. Kh2 {[%clk 0:00:29]}  f6 {[%clk 0:00:04]} 33. Bxf6 {[%clk 0:00:28]}  Be8 {[%clk 0:00:02]} 34. Bc3 {[%clk 0:00:25]}  Nd8 {[%clk 0:00:02]} 35. Bh3 {[%clk 0:00:22]}  Bf7 {[%clk 0:00:01]} 36. Rb2 {[%clk 0:00:19]} 1-0


[Site "https://www.chess.com"]

[Event "Titled Tuesday Blitz April 18 Early 2023"]
[White "benny_aizenberg"]
[Black "Rangel, Daniel"]
[BlackFideId "2124475"]
[WhiteElo "2555"]
[BlackElo "2256"]
[Result "1-0"]
[Round "05"]
[TimeControl "180+2"]
[Date "2023.04.18"]
[WhiteClock "0:01:40"]
[BlackClock "0:00:06"]

1. Nf3 {[%clk 0:03:00]}  Nf6 {[%clk 0:02:54]} 2. g3 {[%clk 0:03:01]}  g6 {[%clk 0:02:47]} 3. Bg2 {[%clk 0:03:01]}  Bg7 {[%clk 0:02:48]} 4. O-O {[%clk 0:02:58]}  O-O {[%clk 0:02:48]} 5. d3 {[%clk 0:02:58]}  c5 {[%clk 0:02:49]} 6. e4 {[%clk 0:02:55]}  Nc6 {[%clk 0:02:48]} 7. Re1 {[%clk 0:02:54]}  d6 {[%clk 0:02:44]} 8. Nbd2 {[%clk 0:02:52]}  e5 {[%clk 0:02:44]} 9. Nf1 {[%clk 0:02:52]}  Bg4 {[%clk 0:02:38]} 10. h3 {[%clk 0:02:49]}  Bxf3 {[%clk 0:02:36]} 11. Bxf3 {[%clk 0:02:49]}  d5 {[%clk 0:02:33]} 12. exd5 {[%clk 0:02:48]}  Nxd5 {[%clk 0:02:32]} 13. Ne3 {[%clk 0:02:46]}  Nc7 {[%clk 0:01:30]} 14. Bd2 {[%clk 0:02:34]}  Rb8 {[%clk 0:01:26]} 15. Bc3 {[%clk 0:02:34]}  Nd4 {[%clk 0:01:25]} 16. Bg2 {[%clk 0:02:26]}  b5 {[%clk 0:01:25]} 17. a4 {[%clk 0:02:25]}  b4 {[%clk 0:01:25]} 18. Bxd4 {[%clk 0:02:23]}  cxd4 {[%clk 0:00:41]} 19. Nc4 {[%clk 0:02:22]}  Re8 {[%clk 0:00:41]} 20. Qd2 {[%clk 0:02:09]}  Kh8 {[%clk 0:00:32]} 21. Re2 {[%clk 0:02:06]}  f5 {[%clk 0:00:22]} 22. Rae1 {[%clk 0:02:04]}  b3 {[%clk 0:00:14]} 23. Nxe5 {[%clk 0:02:02]}  Bxe5 {[%clk 0:00:14]} 24. Rxe5 {[%clk 0:02:02]}  Rxe5 {[%clk 0:00:15]} 25. Rxe5 {[%clk 0:02:03]}  bxc2 {[%clk 0:00:16]} 26. Qxc2 {[%clk 0:02:03]}  Ne8 {[%clk 0:00:14]} 27. Qc5 {[%clk 0:01:52]}  Nf6 {[%clk 0:00:13]} 28. Qxa7 {[%clk 0:01:43]}  Rxb2 {[%clk 0:00:10]} 29. Rb5 {[%clk 0:01:43]}  Rxb5 {[%clk 0:00:07]} 30. axb5 {[%clk 0:01:44]}  Nd7 {[%clk 0:00:05]} 31. Qxd4+ {[%clk 0:01:44]}  Kg8 {[%clk 0:00:05]} 32. Bc6 {[%clk 0:01:42]}  Kf8 {[%clk 0:00:06]} 33. Qxd7 {[%clk 0:01:40]} 1-0


[Site "https://www.chess.com"]

[Event "Titled Tuesday Blitz April 18 Early 2023"]
[White "Krsnik Cohar, Ivan Vihor"]
[Black "Skaric, Djuro"]
[WhiteFideId "14520044"]
[BlackFideId "934569"]
[WhiteElo "2414"]
[BlackElo "2282"]
[Result "1-0"]
[Round "05"]
[TimeControl "180+2"]
[Date "2023.04.18"]
[WhiteClock "0:00:04"]
[BlackClock "0:00:06"]

1. e4 {[%clk 0:02:46]}  d6 {[%clk 0:03:00]} 2. Nf3 {[%clk 0:02:45]}  g6 {[%clk 0:03:01]} 3. Nc3 {[%clk 0:02:45]}  Bg7 {[%clk 0:03:02]} 4. d4 {[%clk 0:02:46]}  Nf6 {[%clk 0:03:02]} 5. Bc4 {[%clk 0:02:45]}  O-O {[%clk 0:03:02]} 6. O-O {[%clk 0:02:46]}  Nc6 {[%clk 0:03:03]} 7. e5 {[%clk 0:02:44]}  dxe5 {[%clk 0:02:58]} 8. dxe5 {[%clk 0:02:38]}  Ng4 {[%clk 0:02:57]} 9. e6 {[%clk 0:02:37]}  f6 {[%clk 0:02:55]} 10. Bf4 {[%clk 0:02:11]}  g5 {[%clk 0:02:19]} 11. Qxd8 {[%clk 0:02:08]}  Rxd8 {[%clk 0:02:17]} 12. Bxc7 {[%clk 0:02:08]}  Rf8 {[%clk 0:02:09]} 13. h3 {[%clk 0:01:57]}  Nge5 {[%clk 0:02:08]} 14. Nxe5 {[%clk 0:01:54]}  fxe5 {[%clk 0:02:07]} 15. Rae1 {[%clk 0:01:25]}  Rf4 {[%clk 0:01:58]} 16. Bd5 {[%clk 0:01:20]}  Rb4 {[%clk 0:01:40]} 17. b3 {[%clk 0:01:12]}  Nd4 {[%clk 0:01:32]} 18. Ba5 {[%clk 0:00:50]}  Rb6 {[%clk 0:01:28]} 19. Bxb6 {[%clk 0:00:46]}  axb6 {[%clk 0:01:28]} 20. a4 {[%clk 0:00:35]}  Bf6 {[%clk 0:01:27]} 21. Re4 {[%clk 0:00:27]}  Kg7 {[%clk 0:01:19]} 22. Ne2 {[%clk 0:00:22]}  Nf5 {[%clk 0:01:15]} 23. Ng3 {[%clk 0:00:17]}  Nd6 {[%clk 0:01:14]} 24. Rb4 {[%clk 0:00:17]}  Kg6 {[%clk 0:01:09]} 25. Rxb6 {[%clk 0:00:17]}  h5 {[%clk 0:01:08]} 26. Ne4 {[%clk 0:00:16]}  Nf5 {[%clk 0:01:05]} 27. Nc5 {[%clk 0:00:12]}  g4 {[%clk 0:01:00]} 28. Bxb7 {[%clk 0:00:11]}  Rb8 {[%clk 0:00:59]} 29. a5 {[%clk 0:00:11]}  Nd6 {[%clk 0:00:54]} 30. a6 {[%clk 0:00:11]}  Bxb7 {[%clk 0:00:53]} 31. Nxb7 {[%clk 0:00:10]}  Nc8 {[%clk 0:00:50]} 32. Rc6 {[%clk 0:00:07]}  gxh3 {[%clk 0:00:41]} 33. Rd1 {[%clk 0:00:07]}  Na7 {[%clk 0:00:38]} 34. Rb6 {[%clk 0:00:06]}  e4 {[%clk 0:00:37]} 35. Rd8 {[%clk 0:00:06]}  Nc8 {[%clk 0:00:36]} 36. Rc6 {[%clk 0:00:06]}  Na7 {[%clk 0:00:32]} 37. Rxb8 {[%clk 0:00:03]}  Nxc6 {[%clk 0:00:32]} 38. Rc8 {[%clk 0:00:04]}  Na7 {[%clk 0:00:32]} 39. Ra8 {[%clk 0:00:05]}  Bd4 {[%clk 0:00:31]} 40. c3 {[%clk 0:00:05]}  Bb6 {[%clk 0:00:30]} 41. c4 {[%clk 0:00:05]}  Nc6 {[%clk 0:00:28]} 42. c5 {[%clk 0:00:06]}  Ba7 {[%clk 0:00:26]} 43. Rc8 {[%clk 0:00:06]}  Nd4 {[%clk 0:00:23]} 44. b4 {[%clk 0:00:05]}  Kf6 {[%clk 0:00:20]} 45. gxh3 {[%clk 0:00:05]}  h4 {[%clk 0:00:19]} 46. b5 {[%clk 0:00:06]}  Nxb5 {[%clk 0:00:19]} 47. Nd8 {[%clk 0:00:03]}  Ke5 {[%clk 0:00:16]} 48. Kg2 {[%clk 0:00:04]}  Kd5 {[%clk 0:00:16]} 49. c6 {[%clk 0:00:03]}  Kd6 {[%clk 0:00:14]} 50. Kf1 {[%clk 0:00:03]}  Nc7 {[%clk 0:00:11]} 51. Ke2 {[%clk 0:00:03]}  Nd5 {[%clk 0:00:07]} 52. Nb7+ {[%clk 0:00:03]}  Kxe6 {[%clk 0:00:07]} 53. Ra8 {[%clk 0:00:03]}  Bb6 {[%clk 0:00:06]} 54. a7 {[%clk 0:00:03]}  Nc7 {[%clk 0:00:06]} 55. Nd8+ {[%clk 0:00:04]}  Kd6 {[%clk 0:00:06]} 56. Nf7+ {[%clk 0:00:03]}  Kc5 {[%clk 0:00:06]} 57. Rc8 {[%clk 0:00:04]}  Kxc6 {[%clk 0:00:06]} 58. a8=Q+ {[%clk 0:00:03]}  Kd7 {[%clk 0:00:04]} 59. Qb7 {[%clk 0:00:04]}  Ke6 {[%clk 0:00:03]} 60. Qxb6+ {[%clk 0:00:04]}  Kxf7 {[%clk 0:00:04]} 61. Qxc7 {[%clk 0:00:04]}  Kg7 {[%clk 0:00:05]} 62. Qxe7+ {[%clk 0:00:04]}  Kg6 {[%clk 0:00:05]} 63. Rc6+ {[%clk 0:00:05]}  Kf5 {[%clk 0:00:06]} 64. Qf6# {[%clk 0:00:04]} 1-0


[Site "https://www.chess.com"]

[Event "Titled Tuesday Blitz April 18 Early 2023"]
[White "micke12a"]
[Black "Ordekalog"]
[WhiteElo "2334"]
[BlackElo "2524"]
[Result "1/2-1/2"]
[Round "05"]
[TimeControl "180+2"]
[Date "2023.04.18"]
[WhiteClock "0:01:06"]
[BlackClock "0:01:35"]

1. e4 {[%clk 0:02:54]}  d5 {[%clk 0:02:58]} 2. exd5 {[%clk 0:02:54]}  Qxd5 {[%clk 0:02:58]} 3. Nf3 {[%clk 0:02:54]}  Nf6 {[%clk 0:02:57]} 4. Nc3 {[%clk 0:02:53]}  Qa5 {[%clk 0:02:56]} 5. Bc4 {[%clk 0:02:53]}  Bg4 {[%clk 0:02:54]} 6. h3 {[%clk 0:02:52]}  Bh5 {[%clk 0:02:53]} 7. O-O {[%clk 0:02:51]}  e6 {[%clk 0:02:51]} 8. Re1 {[%clk 0:02:51]}  Nbd7 {[%clk 0:02:48]} 9. Be2 {[%clk 0:02:40]}  O-O-O {[%clk 0:02:45]} 10. d3 {[%clk 0:02:38]}  Qf5 {[%clk 0:02:35]} 11. g4 {[%clk 0:02:29]}  Nxg4 {[%clk 0:02:34]} 12. hxg4 {[%clk 0:02:29]}  Qxg4+ {[%clk 0:02:33]} 13. Kh1 {[%clk 0:02:26]}  Bd6 {[%clk 0:02:29]} 14. Ne4 {[%clk 0:01:26]}  Qh3+ {[%clk 0:02:25]} 15. Kg1 {[%clk 0:01:24]}  Qg4+ {[%clk 0:02:24]} 16. Kh1 {[%clk 0:01:10]}  Qh3+ {[%clk 0:02:11]} 17. Kg1 {[%clk 0:01:10]}  Qg4+ {[%clk 0:01:35]} 18. Kh1 {[%clk 0:01:06]} 1/2-1/2


[Site "https://www.chess.com"]

[Event "Titled Tuesday Blitz April 18 Early 2023"]
[White "Makhmudov, Shukhrat"]
[Black "Principe, Alexander"]
[WhiteFideId "14200775"]
[BlackFideId "3804542"]
[WhiteElo "2135"]
[BlackElo "2203"]
[Result "0-1"]
[Round "05"]
[TimeControl "180+2"]
[Date "2023.04.18"]
[WhiteClock "0:00:07"]
[BlackClock "0:00:22"]

1. e4 {[%clk 0:03:00]}  e6 {[%clk 0:02:57]} 2. Nf3 {[%clk 0:02:59]}  d5 {[%clk 0:02:57]} 3. e5 {[%clk 0:03:00]}  c5 {[%clk 0:02:57]} 4. b4 {[%clk 0:03:00]}  d4 {[%clk 0:02:58]} 5. bxc5 {[%clk 0:03:00]}  Bxc5 {[%clk 0:02:59]} 6. Bb5+ {[%clk 0:03:00]}  Bd7 {[%clk 0:02:59]} 7. Bxd7+ {[%clk 0:02:56]}  Qxd7 {[%clk 0:03:00]} 8. O-O {[%clk 0:02:56]}  Ne7 {[%clk 0:03:00]} 9. d3 {[%clk 0:02:56]}  Nbc6 {[%clk 0:02:59]} 10. Nbd2 {[%clk 0:02:57]}  O-O {[%clk 0:02:58]} 11. Ne4 {[%clk 0:02:57]}  b6 {[%clk 0:02:51]} 12. Nxc5 {[%clk 0:02:54]}  bxc5 {[%clk 0:02:52]} 13. Ba3 {[%clk 0:02:54]}  Qd5 {[%clk 0:02:53]} 14. Re1 {[%clk 0:02:52]}  Ng6 {[%clk 0:02:53]} 15. Qe2 {[%clk 0:02:51]}  Rab8 {[%clk 0:02:52]} 16. Qe4 {[%clk 0:02:50]}  Nb4 {[%clk 0:02:52]} 17. Bxb4 {[%clk 0:02:36]}  Rxb4 {[%clk 0:02:52]} 18. Qxd5 {[%clk 0:02:32]}  exd5 {[%clk 0:02:53]} 19. e6 {[%clk 0:02:32]}  fxe6 {[%clk 0:02:49]} 20. Rxe6 {[%clk 0:02:32]}  Rb2 {[%clk 0:02:50]} 21. Ne1 {[%clk 0:02:28]}  c4 {[%clk 0:02:35]} 22. g3 {[%clk 0:02:24]}  cxd3 {[%clk 0:02:21]} 23. Nxd3 {[%clk 0:02:15]}  Rxc2 {[%clk 0:02:20]} 24. f4 {[%clk 0:02:00]}  Rd2 {[%clk 0:02:19]} 25. Nb4 {[%clk 0:01:56]}  Rb8 {[%clk 0:02:17]} 26. Nxd5 {[%clk 0:01:22]}  Rbb2 {[%clk 0:02:16]} 27. f5 {[%clk 0:01:22]}  Rg2+ {[%clk 0:02:12]} 28. Kh1 {[%clk 0:01:17]}  Rxh2+ {[%clk 0:02:11]} 29. Kg1 {[%clk 0:01:17]}  Nf8 {[%clk 0:01:52]} 30. Re7 {[%clk 0:00:38]}  Rbg2+ {[%clk 0:01:47]} 31. Kf1 {[%clk 0:00:37]}  Rxg3 {[%clk 0:01:48]} 32. Rae1 {[%clk 0:00:31]}  Rh1+ {[%clk 0:01:41]} 33. Kf2 {[%clk 0:00:31]}  Rxe1 {[%clk 0:01:40]} 34. Kxe1 {[%clk 0:00:25]}  Rf3 {[%clk 0:01:37]} 35. Rxa7 {[%clk 0:00:20]}  h5 {[%clk 0:01:27]} 36. Ke2 {[%clk 0:00:19]}  Rg3 {[%clk 0:01:18]} 37. f6 {[%clk 0:00:20]}  gxf6 {[%clk 0:01:13]} 38. Nxf6+ {[%clk 0:00:19]}  Kh8 {[%clk 0:01:14]} 39. Nxh5 {[%clk 0:00:19]}  Re3+ {[%clk 0:01:14]} 40. Kd2 {[%clk 0:00:19]}  Ng6 {[%clk 0:00:56]} 41. Nf6 {[%clk 0:00:19]}  Ne7 {[%clk 0:00:56]} 42. Ng4 {[%clk 0:00:16]}  Re6 {[%clk 0:00:54]} 43. Kd3 {[%clk 0:00:14]}  Kg7 {[%clk 0:00:54]} 44. Rc7 {[%clk 0:00:11]}  Kg6 {[%clk 0:00:52]} 45. Kxd4 {[%clk 0:00:11]}  Nf5+ {[%clk 0:00:52]} 46. Kd5 {[%clk 0:00:10]}  Rd6+ {[%clk 0:00:49]} 47. Ke5 {[%clk 0:00:09]}  Ra6 {[%clk 0:00:47]} 48. Rc2 {[%clk 0:00:08]}  Ra5+ {[%clk 0:00:42]} 49. Kf4 {[%clk 0:00:08]}  Ra4+ {[%clk 0:00:39]} 50. Ke5 {[%clk 0:00:07]}  Rxg4 {[%clk 0:00:35]} 51. Rc6+ {[%clk 0:00:07]}  Kg5 {[%clk 0:00:36]} 52. Rf6 {[%clk 0:00:07]}  Rf4 {[%clk 0:00:28]} 53. Rf8 {[%clk 0:00:06]}  Rf1 {[%clk 0:00:21]} 54. Rg8+ {[%clk 0:00:07]}  Kh6 {[%clk 0:00:22]} 55. Rf8 {[%clk 0:00:07]}  Kg6 {[%clk 0:00:21]} 56. Rg8+ {[%clk 0:00:07]}  Kf7 {[%clk 0:00:22]} 57. Rg5 {[%clk 0:00:07]}  Ne7 {[%clk 0:00:20]} 58. Ke4 {[%clk 0:00:06]}  Ra1 {[%clk 0:00:20]} 59. Rg2 {[%clk 0:00:06]}  Ke6 {[%clk 0:00:20]} 60. Kd4 {[%clk 0:00:06]}  Nf5+ {[%clk 0:00:21]} 61. Kc4 {[%clk 0:00:06]}  Ne3+ {[%clk 0:00:21]} 62. Kb3 {[%clk 0:00:07]}  Nxg2 {[%clk 0:00:22]} 0-1


[Site "https://www.chess.com"]

[Event "Titled Tuesday Blitz April 18 Early 2023"]
[White "Kalajzic, Ivan"]
[Black "Fiedorek, Michal"]
[WhiteFideId "14506378"]
[BlackFideId "1199528"]
[WhiteElo "2203"]
[BlackElo "2135"]
[Result "0-1"]
[Round "05"]
[TimeControl "180+2"]
[Date "2023.04.18"]
[WhiteClock "0:00:30"]
[BlackClock "0:00:38"]

1. b3 {[%clk 0:02:02]}  e5 {[%clk 0:02:56]} 2. Bb2 {[%clk 0:02:02]}  d6 {[%clk 0:02:53]} 3. e3 {[%clk 0:02:02]}  Nf6 {[%clk 0:02:44]} 4. d4 {[%clk 0:02:02]}  e4 {[%clk 0:02:34]} 5. c4 {[%clk 0:01:55]}  g6 {[%clk 0:02:32]} 6. Nc3 {[%clk 0:01:54]}  Bg7 {[%clk 0:02:31]} 7. g3 {[%clk 0:01:48]}  O-O {[%clk 0:02:30]} 8. Bg2 {[%clk 0:01:48]}  Qe7 {[%clk 0:02:28]} 9. Nge2 {[%clk 0:01:48]}  Re8 {[%clk 0:02:24]} 10. Qc2 {[%clk 0:01:47]}  h5 {[%clk 0:02:19]} 11. h3 {[%clk 0:01:44]}  Bf5 {[%clk 0:02:02]} 12. O-O-O {[%clk 0:01:42]}  a5 {[%clk 0:01:53]} 13. a4 {[%clk 0:01:38]}  Na6 {[%clk 0:01:51]} 14. Nf4 {[%clk 0:01:31]}  Nb4 {[%clk 0:01:50]} 15. Ncd5 {[%clk 0:01:19]}  Nfxd5 {[%clk 0:01:26]} 16. Nxd5 {[%clk 0:01:19]}  Nxd5 {[%clk 0:01:25]} 17. cxd5 {[%clk 0:01:20]}  c6 {[%clk 0:01:21]} 18. Ba3 {[%clk 0:01:07]}  cxd5 {[%clk 0:01:19]} 19. Kb1 {[%clk 0:01:03]}  Rec8 {[%clk 0:01:18]} 20. Qd2 {[%clk 0:01:03]}  b5 {[%clk 0:01:14]} 21. axb5 {[%clk 0:01:01]}  Qb7 {[%clk 0:01:12]} 22. Bf1 {[%clk 0:00:57]}  Bd7 {[%clk 0:01:09]} 23. Bxd6 {[%clk 0:00:48]}  Bxb5 {[%clk 0:01:08]} 24. Bxb5 {[%clk 0:00:48]}  Qxb5 {[%clk 0:01:09]} 25. Qb2 {[%clk 0:00:41]}  a4 {[%clk 0:01:02]} 26. b4 {[%clk 0:00:40]}  a3 {[%clk 0:00:56]} 27. Qa2 {[%clk 0:00:36]}  Rc6 {[%clk 0:00:47]} 28. Bc5 {[%clk 0:00:35]}  Rxc5 {[%clk 0:00:46]} 29. dxc5 {[%clk 0:00:36]}  Qxb4+ {[%clk 0:00:46]} 30. Kc2 {[%clk 0:00:33]}  Qc3+ {[%clk 0:00:38]} 31. Kb1 {[%clk 0:00:30]}  Rb8+ {[%clk 0:00:38]} 0-1


[Site "https://www.chess.com"]